[Event "December 12 Early 2023"]
[Site "https://www.chess.com"]
[Date "2023.12.12"]
[Round "3"]
[White "Wagh Suyog"]
[Black "Gruzman, Ilya"]
[Result "1/2-1/2"]
[Board "45"]
[TimeControl "180+1"]
[WhiteFideId "25071688"]
[BlackFideId "2812703"]
[WhiteElo "2793"]
[BlackElo "2365"]
[WhiteTeam "IND"]
[BlackTeam "ISR"]
[WhiteClock "0:00:08"]
[BlackClock "0:00:07"]

1. e4 {[%clk 0:03:00]}  c5 {[%clk 0:02:53]} 2. Nf3 {[%clk 0:03:00]}  e6 {[%clk 0:02:53]} 3. c3 {[%clk 0:02:38]}  d5 {[%clk 0:02:49]} 4. e5 {[%clk 0:02:38]}  Nc6 {[%clk 0:02:49]} 5. d4 {[%clk 0:02:38]}  Nge7 {[%clk 0:02:48]} 6. Bd3 {[%clk 0:02:36]}  Nf5 {[%clk 0:02:48]} 7. O-O {[%clk 0:02:30]}  Be7 {[%clk 0:02:43]} 8. Re1 {[%clk 0:02:26]}  O-O {[%clk 0:02:37]} 9. g3 {[%clk 0:02:00]}  cxd4 {[%clk 0:02:31]} 10. Bxf5 {[%clk 0:02:00]}  exf5 {[%clk 0:02:32]} 11. cxd4 {[%clk 0:02:01]}  Be6 {[%clk 0:02:33]} 12. Nc3 {[%clk 0:02:00]}  Kh8 {[%clk 0:02:32]} 13. h4 {[%clk 0:01:59]}  Rg8 {[%clk 0:02:32]} 14. Bg5 {[%clk 0:01:58]}  h6 {[%clk 0:02:31]} 15. Bxe7 {[%clk 0:01:57]}  Qxe7 {[%clk 0:02:31]} 16. Kg2 {[%clk 0:01:54]}  Rad8 {[%clk 0:02:29]} 17. a3 {[%clk 0:01:52]}  Rge8 {[%clk 0:02:11]} 18. b4 {[%clk 0:01:52]}  a6 {[%clk 0:02:06]} 19. Rc1 {[%clk 0:01:51]}  Rc8 {[%clk 0:02:01]} 20. Na4 {[%clk 0:01:49]}  Na7 {[%clk 0:01:47]} 21. Nc5 {[%clk 0:01:40]}  Rc7 {[%clk 0:01:30]} 22. Qd2 {[%clk 0:01:36]}  Rec8 {[%clk 0:01:29]} 23. a4 {[%clk 0:01:36]}  Nc6 {[%clk 0:01:22]} 24. h5 {[%clk 0:01:10]}  a5 {[%clk 0:01:21]} 25. Nxe6 {[%clk 0:01:04]}  fxe6 {[%clk 0:01:19]} 26. bxa5 {[%clk 0:01:04]}  Nxa5 {[%clk 0:01:05]} 27. Rxc7 {[%clk 0:00:59]}  Qxc7 {[%clk 0:01:06]} 28. Qb4 {[%clk 0:00:55]}  Nc4 {[%clk 0:00:56]} 29. Nh4 {[%clk 0:00:55]}  Kg8 {[%clk 0:00:47]} 30. Ng6 {[%clk 0:00:55]}  Kf7 {[%clk 0:00:47]} 31. Nf4 {[%clk 0:00:55]}  Ra8 {[%clk 0:00:43]} 32. Rb1 {[%clk 0:00:53]}  b6 {[%clk 0:00:42]} 33. Ra1 {[%clk 0:00:40]}  Ra5 {[%clk 0:00:38]} 34. Qf8+ {[%clk 0:00:35]}  Kxf8 {[%clk 0:00:35]} 35. Nxe6+ {[%clk 0:00:36]}  Ke7 {[%clk 0:00:34]} 36. Nxc7 {[%clk 0:00:37]}  Nb2 {[%clk 0:00:33]} 37. Kf3 {[%clk 0:00:24]}  Kd7 {[%clk 0:00:28]} 38. Nb5 {[%clk 0:00:19]}  Nxa4 {[%clk 0:00:28]} 39. Nd6 {[%clk 0:00:19]}  Nc3 {[%clk 0:00:22]} 40. Rc1 {[%clk 0:00:16]}  Ra3 {[%clk 0:00:22]} 41. Kg2 {[%clk 0:00:12]}  Ne4 {[%clk 0:00:17]} 42. Nxe4 {[%clk 0:00:06]}  fxe4 {[%clk 0:00:18]} 43. Rb1 {[%clk 0:00:06]}  Kc6 {[%clk 0:00:17]} 44. e6 {[%clk 0:00:06]}  Ra6 {[%clk 0:00:13]} 45. f4 {[%clk 0:00:06]}  Kd6 {[%clk 0:00:13]} 46. f5 {[%clk 0:00:06]}  Ke7 {[%clk 0:00:12]} 47. Kh3 {[%clk 0:00:06]}  Kf6 {[%clk 0:00:12]} 48. Kg4 {[%clk 0:00:06]}  Ra4 {[%clk 0:00:11]} 49. Rxb6 {[%clk 0:00:06]}  Rxd4 {[%clk 0:00:11]} 50. Rb7 {[%clk 0:00:04]}  e3+ {[%clk 0:00:09]} 51. Kf3 {[%clk 0:00:05]}  Kxf5 {[%clk 0:00:09]} 52. Rxg7 {[%clk 0:00:05]}  Kxe6 {[%clk 0:00:08]} 53. Kxe3 {[%clk 0:00:05]}  Re4+ {[%clk 0:00:08]} 54. Kf3 {[%clk 0:00:05]}  Kf5 {[%clk 0:00:08]} 55. Rg6 {[%clk 0:00:05]}  Re6 {[%clk 0:00:04]} 56. g4+ {[%clk 0:00:04]}  Ke5 {[%clk 0:00:04]} 57. Rg8 {[%clk 0:00:05]}  Rf6+ {[%clk 0:00:04]} 58. Ke3 {[%clk 0:00:05]}  d4+ {[%clk 0:00:05]} 59. Kd3 {[%clk 0:00:05]}  Rf3+ {[%clk 0:00:05]} 60. Kd2 {[%clk 0:00:06]}  Rg3 {[%clk 0:00:05]} 61. Rg6 {[%clk 0:00:06]}  Ke4 {[%clk 0:00:05]} 62. Re6+ {[%clk 0:00:06]}  Kd5 {[%clk 0:00:05]} 63. Rxh6 {[%clk 0:00:06]}  Rxg4 {[%clk 0:00:06]} 64. Rg6 {[%clk 0:00:06]}  Rh4 {[%clk 0:00:06]} 65. Rg8 {[%clk 0:00:06]}  Rxh5 {[%clk 0:00:05]} 66. Rd8+ {[%clk 0:00:06]}  Ke4 {[%clk 0:00:05]} 67. Re8+ {[%clk 0:00:07]}  Re5 {[%clk 0:00:06]} 68. Rxe5+ {[%clk 0:00:07]}  Kxe5 {[%clk 0:00:07]} 69. Kd3 {[%clk 0:00:08]}  Kd5 {[%clk 0:00:06]} 70. Kd2 {[%clk 0:00:08]}  d3 {[%clk 0:00:07]} 71. Kxd3 {[%clk 0:00:08]} 1/2-1/2

[Event "December 12 Early 2023"]
[Site "https://www.chess.com"]
[Date "2023.12.12"]
[Round "3"]
[White "Spata, German"]
[Black "Gokerkan, Cem Kaan"]
[Result "1-0"]
[Board "51"]
[TimeControl "180+1"]
[WhiteFideId "113026"]
[BlackFideId "6336760"]
[WhiteElo "2597"]
[BlackElo "2864"]
[WhiteTeam "ARG"]
[BlackTeam "TUR"]
[WhiteClock "0:00:15"]
[BlackClock "0:00:05"]

1. Nf3 {[%clk 0:02:50]}  g6 {[%clk 0:02:56]} 2. d4 {[%clk 0:02:46]}  Bg7 {[%clk 0:02:57]} 3. Bf4 {[%clk 0:02:45]}  c5 {[%clk 0:02:54]} 4. c3 {[%clk 0:02:44]}  Qb6 {[%clk 0:02:54]} 5. Qb3 {[%clk 0:02:43]}  Qxb3 {[%clk 0:02:51]} 6. axb3 {[%clk 0:02:43]}  cxd4 {[%clk 0:02:52]} 7. cxd4 {[%clk 0:02:43]}  Nc6 {[%clk 0:02:52]} 8. e3 {[%clk 0:02:44]}  d6 {[%clk 0:02:51]} 9. Nc3 {[%clk 0:02:39]}  Nf6 {[%clk 0:02:47]} 10. Be2 {[%clk 0:02:33]}  Bf5 {[%clk 0:02:37]} 11. O-O {[%clk 0:02:30]}  O-O {[%clk 0:02:28]} 12. h3 {[%clk 0:02:30]}  a6 {[%clk 0:02:26]} 13. Nd2 {[%clk 0:02:25]}  Rfc8 {[%clk 0:02:07]} 14. Nc4 {[%clk 0:02:19]}  Nd7 {[%clk 0:02:03]} 15. g4 {[%clk 0:01:52]}  Bc2 {[%clk 0:01:54]} 16. Rfc1 {[%clk 0:01:41]}  Nb4 {[%clk 0:01:48]} 17. Ra4 {[%clk 0:01:27]}  a5 {[%clk 0:01:49]} 18. Nxa5 {[%clk 0:01:20]}  b6 {[%clk 0:01:33]} 19. Rxb4 {[%clk 0:01:20]}  bxa5 {[%clk 0:01:33]} 20. Rb7 {[%clk 0:01:21]}  e5 {[%clk 0:01:27]} 21. Rxc2 {[%clk 0:01:10]}  exf4 {[%clk 0:01:27]} 22. Rxd7 {[%clk 0:01:10]}  Rab8 {[%clk 0:01:25]} 23. Bc4 {[%clk 0:01:07]}  fxe3 {[%clk 0:01:23]} 24. fxe3 {[%clk 0:01:06]}  Kh8 {[%clk 0:01:23]} 25. Rxd6 {[%clk 0:01:00]}  Re8 {[%clk 0:01:22]} 26. Re2 {[%clk 0:00:59]}  Re7 {[%clk 0:01:20]} 27. Kg2 {[%clk 0:00:59]}  Bf8 {[%clk 0:01:17]} 28. Ra6 {[%clk 0:00:54]}  Bh6 {[%clk 0:01:15]} 29. Nd5 {[%clk 0:00:53]}  Rd7 {[%clk 0:01:13]} 30. Rxa5 {[%clk 0:00:52]}  Rbd8 {[%clk 0:01:13]} 31. e4 {[%clk 0:00:49]}  Bg7 {[%clk 0:01:12]} 32. e5 {[%clk 0:00:49]}  Rb7 {[%clk 0:01:09]} 33. Kf3 {[%clk 0:00:36]}  Kg8 {[%clk 0:01:04]} 34. Ke4 {[%clk 0:00:37]}  Kf8 {[%clk 0:01:04]} 35. Rb5 {[%clk 0:00:35]}  Ra7 {[%clk 0:01:04]} 36. Rc2 {[%clk 0:00:31]}  Bh6 {[%clk 0:01:04]} 37. h4 {[%clk 0:00:28]}  Bg7 {[%clk 0:01:00]} 38. g5 {[%clk 0:00:28]}  h6 {[%clk 0:01:00]} 39. Nf6 {[%clk 0:00:27]}  Rc8 {[%clk 0:00:50]} 40. Rc5 {[%clk 0:00:26]}  Rd8 {[%clk 0:00:47]} 41. Bd5 {[%clk 0:00:25]}  hxg5 {[%clk 0:00:45]} 42. hxg5 {[%clk 0:00:25]}  Bxf6 {[%clk 0:00:25]} 43. gxf6 {[%clk 0:00:25]}  Ra1 {[%clk 0:00:26]} 44. Rc8 {[%clk 0:00:15]}  Ke8 {[%clk 0:00:18]} 45. Bxf7+ {[%clk 0:00:14]}  Kxf7 {[%clk 0:00:16]} 46. Rxd8 {[%clk 0:00:14]}  g5 {[%clk 0:00:17]} 47. Rd7+ {[%clk 0:00:14]}  Kg6 {[%clk 0:00:17]} 48. Rg7+ {[%clk 0:00:14]}  Kh5 {[%clk 0:00:17]} 49. Rh2+ {[%clk 0:00:14]}  Kg4 {[%clk 0:00:17]} 50. Rg2+ {[%clk 0:00:15]}  Kh3 {[%clk 0:00:18]} 51. R7xg5 {[%clk 0:00:14]}  Re1+ {[%clk 0:00:18]} 52. Kd5 {[%clk 0:00:15]}  Kh4 {[%clk 0:00:19]} 53. R2g4+ {[%clk 0:00:15]}  Kh3 {[%clk 0:00:19]} 54. Rg1 {[%clk 0:00:16]}  Rxe5+ {[%clk 0:00:19]} 55. dxe5 {[%clk 0:00:15]}  Kh4 {[%clk 0:00:05]} 56. Rg8 {[%clk 0:00:15]} 1-0

[Event "December 12 Early 2023"]
[Site "https://www.chess.com"]
[Date "2023.12.12"]
[Round "3"]
[White "Tasev, Dejan"]
[Black "Mikaelyan, Arman"]
[Result "0-1"]
[Board "52"]
[TimeControl "180+1"]
[WhiteFideId "936618"]
[BlackFideId "13304852"]
[WhiteElo "2594"]
[BlackElo "2860"]
[WhiteTeam "SRB"]
[BlackTeam "ARM"]
[WhiteClock "0:00:00"]
[BlackClock "0:00:07"]

1. e4 {[%clk 0:03:00]}  e5 {[%clk 0:02:46]} 2. Nf3 {[%clk 0:03:00]}  Nc6 {[%clk 0:02:45]} 3. Bb5 {[%clk 0:03:00]}  a6 {[%clk 0:02:42]} 4. Ba4 {[%clk 0:03:00]}  Nf6 {[%clk 0:02:42]} 5. O-O {[%clk 0:03:00]}  Be7 {[%clk 0:02:43]} 6. Re1 {[%clk 0:03:00]}  b5 {[%clk 0:02:43]} 7. Bb3 {[%clk 0:03:00]}  d6 {[%clk 0:02:43]} 8. c3 {[%clk 0:03:01]}  O-O {[%clk 0:02:44]} 9. h3 {[%clk 0:03:01]}  Bb7 {[%clk 0:02:41]} 10. d4 {[%clk 0:03:01]}  Re8 {[%clk 0:02:42]} 11. Nbd2 {[%clk 0:03:00]}  Bf8 {[%clk 0:02:41]} 12. Bc2 {[%clk 0:02:59]}  g6 {[%clk 0:02:39]} 13. d5 {[%clk 0:02:56]}  Nb8 {[%clk 0:02:36]} 14. b3 {[%clk 0:02:56]}  Nbd7 {[%clk 0:02:32]} 15. c4 {[%clk 0:02:54]}  c6 {[%clk 0:02:32]} 16. Bd3 {[%clk 0:02:50]}  Nh5 {[%clk 0:02:29]} 17. Bf1 {[%clk 0:02:49]}  Bh6 {[%clk 0:02:27]} 18. a4 {[%clk 0:02:45]}  b4 {[%clk 0:02:25]} 19. Ra2 {[%clk 0:02:16]}  Nc5 {[%clk 0:02:11]} 20. Nh2 {[%clk 0:02:05]}  Rc8 {[%clk 0:01:53]} 21. Rb2 {[%clk 0:01:58]}  cxd5 {[%clk 0:01:53]} 22. cxd5 {[%clk 0:01:56]}  Nf6 {[%clk 0:01:10]} 23. Ng4 {[%clk 0:01:37]}  Nxg4 {[%clk 0:01:09]} 24. Qxg4 {[%clk 0:01:28]}  Bf4 {[%clk 0:00:51]} 25. g3 {[%clk 0:01:23]}  h5 {[%clk 0:00:52]} 26. Qf3 {[%clk 0:01:17]}  Bh6 {[%clk 0:00:51]} 27. Nc4 {[%clk 0:01:14]}  Bxc1 {[%clk 0:00:51]} 28. Rxc1 {[%clk 0:01:14]}  h4 {[%clk 0:00:48]} 29. Kh2 {[%clk 0:00:53]}  hxg3+ {[%clk 0:00:46]} 30. fxg3 {[%clk 0:00:52]}  Kg7 {[%clk 0:00:46]} 31. Rf2 {[%clk 0:00:51]}  Rc7 {[%clk 0:00:44]} 32. Be2 {[%clk 0:00:45]}  Rh8 {[%clk 0:00:42]} 33. Rcf1 {[%clk 0:00:44]}  Bc8 {[%clk 0:00:35]} 34. h4 {[%clk 0:00:41]}  f5 {[%clk 0:00:33]} 35. exf5 {[%clk 0:00:37]}  Bxf5 {[%clk 0:00:34]} 36. Qe3 {[%clk 0:00:30]}  Ne4 {[%clk 0:00:30]} 37. Rxf5 {[%clk 0:00:28]}  gxf5 {[%clk 0:00:31]} 38. Rxf5 {[%clk 0:00:28]}  Nc3 {[%clk 0:00:15]} 39. Rg5+ {[%clk 0:00:25]}  Kf8 {[%clk 0:00:15]} 40. Bf3 {[%clk 0:00:23]}  Rf7 {[%clk 0:00:16]} 41. Bg2 {[%clk 0:00:19]}  Nd1 {[%clk 0:00:16]} 42. Qe2 {[%clk 0:00:17]}  Nf2 {[%clk 0:00:16]} 43. Nxe5 {[%clk 0:00:14]}  Qxg5 {[%clk 0:00:14]} 44. Nxf7 {[%clk 0:00:12]}  Ng4+ {[%clk 0:00:15]} 45. Kh3 {[%clk 0:00:11]}  Qf5 {[%clk 0:00:14]} 46. Nxh8 {[%clk 0:00:08]}  Nf2+ {[%clk 0:00:11]} 47. Kh2 {[%clk 0:00:08]}  Ng4+ {[%clk 0:00:12]} 48. Kg1 {[%clk 0:00:08]}  Kg8 {[%clk 0:00:07]} 49. Qe8+ {[%clk 0:00:07]}  Kg7 {[%clk 0:00:07]} 50. Qe7+ {[%clk 0:00:06]}  Kxh8 {[%clk 0:00:07]} 51. Qe8+ {[%clk 0:00:06]}  Kg7 {[%clk 0:00:07]} 52. Qe7+ {[%clk 0:00:06]}  Kh8 {[%clk 0:00:08]} 53. Qe2 {[%clk 0:00:05]}  Ne5 {[%clk 0:00:07]} 54. Qxa6 {[%clk 0:00:04]}  Qb1+ {[%clk 0:00:08]} 55. Kh2 {[%clk 0:00:04]}  Ng4+ {[%clk 0:00:06]} 56. Kh3 {[%clk 0:00:03]}  Nf2+ {[%clk 0:00:07]} 57. Kh2 {[%clk 0:00:04]}  Qxb3 {[%clk 0:00:06]} 58. Qc8+ {[%clk 0:00:04]}  Kg7 {[%clk 0:00:07]} 59. Qd7+ {[%clk 0:00:04]}  Kg8 {[%clk 0:00:06]} 60. Qd8+ {[%clk 0:00:04]}  Kg7 {[%clk 0:00:07]} 61. Qe7+ {[%clk 0:00:04]}  Kg8 {[%clk 0:00:06]} 62. Qe6+ {[%clk 0:00:05]}  Kg7 {[%clk 0:00:07]} 63. Qxd6 {[%clk 0:00:04]}  Ng4+ {[%clk 0:00:06]} 64. Kh3 {[%clk 0:00:05]}  Nf2+ {[%clk 0:00:07]} 65. Kh2 {[%clk 0:00:06]}  Ng4+ {[%clk 0:00:07]} 66. Kg1 {[%clk 0:00:06]}  Qe3+ {[%clk 0:00:07]} 67. Kh1 {[%clk 0:00:00]}  Qe1+ {[%clk 0:00:07]} 0-1

[Event "December 12 Early 2023"]
[Site "https://www.chess.com"]
[Date "2023.12.12"]
[Round "3"]
[White "Silva Lucena, Cristian"]
[Black "Kosteniuk, Alexandra"]
[Result "0-1"]
[Board "57"]
[TimeControl "180+1"]
[WhiteFideId "2232588"]
[BlackFideId "4128125"]
[WhiteElo "2532"]
[BlackElo "2725"]
[WhiteTeam "ESP"]
[BlackTeam "SUI"]
[WhiteClock "0:00:30"]
[BlackClock "0:00:16"]

1. e4 {[%clk 0:03:00]}  c6 {[%clk 0:03:00]} 2. d4 {[%clk 0:03:00]}  d5 {[%clk 0:03:00]} 3. e5 {[%clk 0:03:01]}  c5 {[%clk 0:03:00]} 4. dxc5 {[%clk 0:03:00]}  e6 {[%clk 0:03:01]} 5. a3 {[%clk 0:02:59]}  Bxc5 {[%clk 0:02:58]} 6. b4 {[%clk 0:02:59]}  Be7 {[%clk 0:02:58]} 7. Nf3 {[%clk 0:02:59]}  f6 {[%clk 0:02:57]} 8. Bb2 {[%clk 0:02:59]}  Nc6 {[%clk 0:02:50]} 9. Nbd2 {[%clk 0:02:58]}  fxe5 {[%clk 0:02:46]} 10. Nxe5 {[%clk 0:02:56]}  Nxe5 {[%clk 0:02:46]} 11. Bxe5 {[%clk 0:02:56]}  Nf6 {[%clk 0:02:46]} 12. Bd3 {[%clk 0:02:51]}  O-O {[%clk 0:02:45]} 13. O-O {[%clk 0:02:50]}  Bd6 {[%clk 0:02:43]} 14. Bxd6 {[%clk 0:02:46]}  Qxd6 {[%clk 0:02:43]} 15. c4 {[%clk 0:02:46]}  Bd7 {[%clk 0:02:36]} 16. cxd5 {[%clk 0:02:46]}  exd5 {[%clk 0:02:35]} 17. h3 {[%clk 0:02:38]}  Rac8 {[%clk 0:02:34]} 18. Rc1 {[%clk 0:02:37]}  Rxc1 {[%clk 0:02:27]} 19. Qxc1 {[%clk 0:02:36]}  Rc8 {[%clk 0:02:27]} 20. Qb2 {[%clk 0:02:34]}  Qf4 {[%clk 0:02:19]} 21. Nf3 {[%clk 0:02:29]}  Bxh3 {[%clk 0:02:15]} 22. Qd4 {[%clk 0:02:17]}  Qxd4 {[%clk 0:02:11]} 23. Nxd4 {[%clk 0:02:18]}  Bd7 {[%clk 0:02:11]} 24. Bf5 {[%clk 0:02:11]}  Bxf5 {[%clk 0:02:01]} 25. Nxf5 {[%clk 0:02:12]}  Rc7 {[%clk 0:01:30]} 26. Re1 {[%clk 0:02:09]}  Rd7 {[%clk 0:01:28]} 27. Nd4 {[%clk 0:02:09]}  Kf7 {[%clk 0:01:27]} 28. f3 {[%clk 0:02:05]}  Rc7 {[%clk 0:01:25]} 29. Ne6 {[%clk 0:02:03]}  Rc8 {[%clk 0:01:06]} 30. Nd4 {[%clk 0:01:56]}  a6 {[%clk 0:00:55]} 31. Re3 {[%clk 0:01:53]}  g6 {[%clk 0:00:42]} 32. Nb3 {[%clk 0:01:48]}  Rc4 {[%clk 0:00:37]} 33. Nc5 {[%clk 0:01:40]}  a5 {[%clk 0:00:36]} 34. Nxb7 {[%clk 0:01:38]}  Rc1+ {[%clk 0:00:35]} 35. Kf2 {[%clk 0:01:29]}  axb4 {[%clk 0:00:35]} 36. axb4 {[%clk 0:01:29]}  Rb1 {[%clk 0:00:36]} 37. b5 {[%clk 0:01:30]}  d4 {[%clk 0:00:32]} 38. Nd6+ {[%clk 0:01:23]}  Kf8 {[%clk 0:00:31]} 39. Rd3 {[%clk 0:01:23]}  Rb2+ {[%clk 0:00:30]} 40. Kg1 {[%clk 0:01:17]}  Rb4 {[%clk 0:00:20]} 41. b6 {[%clk 0:01:17]}  Ke7 {[%clk 0:00:20]} 42. b7 {[%clk 0:01:13]}  Nd7 {[%clk 0:00:19]} 43. Nc8+ {[%clk 0:00:49]}  Kd8 {[%clk 0:00:19]} 44. Nd6 {[%clk 0:00:46]}  Kc7 {[%clk 0:00:19]} 45. Nf7 {[%clk 0:00:42]}  Kxb7 {[%clk 0:00:18]} 46. Ng5 {[%clk 0:00:42]}  Kc6 {[%clk 0:00:17]} 47. Nxh7 {[%clk 0:00:37]}  Kd5 {[%clk 0:00:18]} 48. Nf8 {[%clk 0:00:36]}  Rb1+ {[%clk 0:00:17]} 49. Kh2 {[%clk 0:00:30]}  Nxf8 {[%clk 0:00:16]} 0-1

[Event "December 12 Early 2023"]
[Site "https://www.chess.com"]
[Date "2023.12.12"]
[Round "3"]
[White "Pakleza, Zbigniew"]
[Black "Lopez Idarraga, Daniel Eduardo"]
[Result "1-0"]
[Board "60"]
[TimeControl "180+1"]
[WhiteFideId "1119290"]
[BlackFideId "4405501"]
[WhiteElo "2690"]
[BlackElo "2459"]
[WhiteTeam "POL"]
[BlackTeam "COL"]
[WhiteClock "0:01:44"]
[BlackClock "0:00:03"]

1. d4 {[%clk 0:03:00]}  d5 {[%clk 0:02:56]} 2. Bf4 {[%clk 0:03:00]}  c5 {[%clk 0:02:55]} 3. c3 {[%clk 0:03:00]}  cxd4 {[%clk 0:02:56]} 4. cxd4 {[%clk 0:03:01]}  Nc6 {[%clk 0:02:56]} 5. e3 {[%clk 0:03:01]}  Nf6 {[%clk 0:02:56]} 6. Nc3 {[%clk 0:03:01]}  a6 {[%clk 0:02:57]} 7. Nf3 {[%clk 0:03:00]}  Bg4 {[%clk 0:02:57]} 8. Bd3 {[%clk 0:03:00]}  e6 {[%clk 0:02:57]} 9. Qb3 {[%clk 0:03:00]}  Bxf3 {[%clk 0:02:46]} 10. gxf3 {[%clk 0:03:01]}  Qd7 {[%clk 0:02:43]} 11. Na4 {[%clk 0:02:59]}  Bb4+ {[%clk 0:02:38]} 12. Ke2 {[%clk 0:02:57]}  Qe7 {[%clk 0:02:24]} 13. a3 {[%clk 0:02:44]}  Bd6 {[%clk 0:01:56]} 14. Bxd6 {[%clk 0:02:44]}  Qxd6 {[%clk 0:01:57]} 15. Qxb7 {[%clk 0:02:43]}  O-O {[%clk 0:01:58]} 16. Rac1 {[%clk 0:02:36]}  Rfc8 {[%clk 0:00:10]} 17. Nb6 {[%clk 0:02:05]}  Rcb8 {[%clk 0:00:03]} 18. Rxc6 {[%clk 0:01:44]} 1-0

[Event "December 12 Early 2023"]
[Site "https://www.chess.com"]
[Date "2023.12.12"]
[Round "3"]
[White "Vishnu Prasanna. V"]
[Black "Matveeva, Olga"]
[Result "0-1"]
[Board "62"]
[TimeControl "180+1"]
[WhiteFideId "5030692"]
[BlackFideId "24107018"]
[WhiteElo "2672"]
[BlackElo "2404"]
[WhiteTeam "IND"]
[BlackTeam "RUS"]
[WhiteClock "0:00:27"]
[BlackClock "0:01:22"]

1. d4 {[%clk 0:02:52]}  d5 {[%clk 0:02:59]} 2. c4 {[%clk 0:02:53]}  e6 {[%clk 0:03:00]} 3. Nf3 {[%clk 0:02:53]}  Nf6 {[%clk 0:03:00]} 4. g3 {[%clk 0:02:53]}  Bb4+ {[%clk 0:02:59]} 5. Nbd2 {[%clk 0:02:52]}  Be7 {[%clk 0:03:00]} 6. Bg2 {[%clk 0:02:51]}  O-O {[%clk 0:02:59]} 7. O-O {[%clk 0:02:50]}  Nbd7 {[%clk 0:02:57]} 8. Qc2 {[%clk 0:02:49]}  c6 {[%clk 0:02:55]} 9. e4 {[%clk 0:02:47]}  dxe4 {[%clk 0:02:55]} 10. Nxe4 {[%clk 0:02:47]}  Nxe4 {[%clk 0:02:55]} 11. Qxe4 {[%clk 0:02:47]}  Nf6 {[%clk 0:02:56]} 12. Qe2 {[%clk 0:02:48]}  c5 {[%clk 0:02:44]} 13. Rd1 {[%clk 0:02:44]}  cxd4 {[%clk 0:02:43]} 14. Rxd4 {[%clk 0:02:43]}  Qa5 {[%clk 0:02:42]} 15. Bd2 {[%clk 0:02:35]}  Qb6 {[%clk 0:02:41]} 16. Bc3 {[%clk 0:02:35]}  Bd7 {[%clk 0:02:40]} 17. Ne5 {[%clk 0:02:34]}  Rad8 {[%clk 0:02:34]} 18. Rh4 {[%clk 0:01:50]}  Bc8 {[%clk 0:02:25]} 19. g4 {[%clk 0:01:45]}  Nd5 {[%clk 0:02:12]} 20. g5 {[%clk 0:01:43]}  Nxc3 {[%clk 0:02:11]} 21. Qh5 {[%clk 0:01:31]}  h6 {[%clk 0:02:07]} 22. gxh6 {[%clk 0:01:30]}  Bxh4 {[%clk 0:02:05]} 23. hxg7 {[%clk 0:01:22]}  Qxf2+ {[%clk 0:02:03]} 24. Kh1 {[%clk 0:01:21]}  Kxg7 {[%clk 0:01:55]} 25. Bf3 {[%clk 0:01:21]}  Rd1+ {[%clk 0:01:42]} 26. Rxd1 {[%clk 0:01:11]}  Nxd1 {[%clk 0:01:40]} 27. Qg4+ {[%clk 0:01:12]}  Kh8 {[%clk 0:01:34]} 28. Qh5+ {[%clk 0:01:09]}  Kg7 {[%clk 0:01:33]} 29. Qg4+ {[%clk 0:01:02]}  Kf6 {[%clk 0:01:24]} 30. Qf4+ {[%clk 0:00:27]}  Ke7 {[%clk 0:01:22]} 0-1

[Event "December 12 Early 2023"]
[Site "https://www.chess.com"]
[Date "2023.12.12"]
[Round "3"]
[White "Maksimovic, Bojan"]
[Black "Quirke, Jeffrey"]
[Result "1-0"]
[Board "65"]
[TimeControl "180+1"]
[WhiteFideId "14408120"]
[BlackFideId "2013029"]
[WhiteElo "2905"]
[BlackElo "2162"]
[WhiteTeam "BIH"]
[BlackTeam "USA"]
[WhiteClock "0:00:55"]
[BlackClock "0:00:00"]

1. e4 {[%clk 0:03:00]}  d6 {[%clk 0:02:59]} 2. d4 {[%clk 0:03:00]}  Nf6 {[%clk 0:03:00]} 3. Nc3 {[%clk 0:03:00]}  e5 {[%clk 0:03:01]} 4. Nf3 {[%clk 0:03:00]}  Nbd7 {[%clk 0:03:01]} 5. Bc4 {[%clk 0:03:00]}  Be7 {[%clk 0:03:01]} 6. O-O {[%clk 0:03:00]}  O-O {[%clk 0:03:01]} 7. Re1 {[%clk 0:03:01]}  c6 {[%clk 0:03:00]} 8. a4 {[%clk 0:03:01]}  a5 {[%clk 0:03:00]} 9. h3 {[%clk 0:03:00]}  Nb6 {[%clk 0:02:57]} 10. Bf1 {[%clk 0:02:54]}  Nfd7 {[%clk 0:02:54]} 11. Be3 {[%clk 0:02:52]}  exd4 {[%clk 0:02:50]} 12. Nxd4 {[%clk 0:02:52]}  Nc5 {[%clk 0:02:48]} 13. Qd2 {[%clk 0:02:50]}  Bf6 {[%clk 0:02:40]} 14. b3 {[%clk 0:02:50]}  Re8 {[%clk 0:02:36]} 15. Bf4 {[%clk 0:02:46]}  Be5 {[%clk 0:02:12]} 16. Rad1 {[%clk 0:02:28]}  Qe7 {[%clk 0:02:05]} 17. Nf3 {[%clk 0:02:16]}  Bxc3 {[%clk 0:01:45]} 18. Qxc3 {[%clk 0:02:16]}  Nxe4 {[%clk 0:01:46]} 19. Rxe4 {[%clk 0:02:16]}  Qxe4 {[%clk 0:01:45]} 20. Re1 {[%clk 0:02:17]}  Qxe1 {[%clk 0:01:28]} 21. Nxe1 {[%clk 0:02:17]}  Nd5 {[%clk 0:01:27]} 22. Qd2 {[%clk 0:01:54]}  Nxf4 {[%clk 0:01:27]} 23. Qxd6 {[%clk 0:01:55]}  Ng6 {[%clk 0:00:56]} 24. Nd3 {[%clk 0:01:53]}  Be6 {[%clk 0:00:49]} 25. Kh2 {[%clk 0:01:44]}  Bf5 {[%clk 0:00:48]} 26. Qc5 {[%clk 0:01:17]}  Bxd3 {[%clk 0:00:45]} 27. Bxd3 {[%clk 0:01:18]}  Ne5 {[%clk 0:00:41]} 28. Bf1 {[%clk 0:01:17]}  g6 {[%clk 0:00:29]} 29. Qb6 {[%clk 0:01:15]}  Re7 {[%clk 0:00:25]} 30. f4 {[%clk 0:01:10]}  Nd7 {[%clk 0:00:16]} 31. Qxb7 {[%clk 0:01:10]}  Rae8 {[%clk 0:00:13]} 32. Qxc6 {[%clk 0:01:11]}  Nf8 {[%clk 0:00:07]} 33. Bb5 {[%clk 0:01:09]}  Rd8 {[%clk 0:00:04]} 34. Qc5 {[%clk 0:01:08]}  Re1 {[%clk 0:00:03]} 35. f5 {[%clk 0:01:04]}  Rdd1 {[%clk 0:00:04]} 36. Bd3 {[%clk 0:00:57]}  Rh1+ {[%clk 0:00:03]} 37. Kg3 {[%clk 0:00:57]}  Rhe1 {[%clk 0:00:01]} 38. Qxa5 {[%clk 0:00:56]}  Kg7 {[%clk 0:00:00]} 39. Qc3+ {[%clk 0:00:55]} 1-0